{"text_format":"1","workbook":"xlsx","n_sheets":2,"sheets":["【調査票 13】障害児入所施設","data"],"not_rendered":{"charts":0,"images":1,"macros":1,"external_links":0,"defined_names":1,"comments":0,"pivot_tables":0},"unopened":[],"bounds":{"document_bytes":16777216,"sheet_cells":100000,"rows_first":2000,"rows_last":500,"rows_between":2000,"halvings":0,"cell_chars":16384,"cell_head_chars":4096},"cells_cut":0,"cells_raw":0,"read":"whole","date_system":"1900"}

{"sheet":"【調査票 13】障害児入所施設","index":0,"n_rows":116,"n_cols":98,"rows_kept":116,"cut":false,"hidden":false,"merged":[[102,77,102,88],[22,30,22,46],[44,46,44,61],[64,78,64,83],[96,41,96,59],[98,68,98,71],[101,32,104,41],[101,61,104,68],[24,56,29,67],[71,36,75,46],[77,36,83,46],[71,1,84,3],[71,4,83,15],[12,76,12,89],[15,38,15,45],[15,49,15,52],[15,68,15,75],[15,79,15,82],[15,30,15,35],[15,60,15,65],[30,16,32,21],[34,4,48,15],[69,4,69,15],[24,16,24,21],[25,16,26,21],[27,16,27,21],[28,16,29,21],[115,1,121,15],[86,1,96,15],[101,1,103,15],[107,1,109,15],[111,1,111,15],[112,1,112,15],[0,1,0,89],[1,0,2,16],[4,1,4,89],[5,1,5,89],[8,1,10,9],[14,1,69,3],[15,4,15,15],[17,4,23,15],[24,4,32,15],[51,4,53,15],[57,4,63,15],[68,4,68,15],[84,4,84,15],[8,68,10,74],[9,76,9,89],[8,38,10,43],[8,44,10,47],[8,48,10,53],[8,54,10,58],[8,59,10,62],[8,20,10,23],[8,24,10,27],[8,28,10,33],[8,10,10,15],[8,34,10,37],[8,16,10,19]]}
[null,"令和４年度児童養護施設入所児童等調査"]
[]
[]
[]
[null,"障害児入所施設入所児童票"]
[null,"（令和５年２月１日現在）"]
[null,"　　　　　　　　　　　　　　　　　　　　　　　　　　　　　　　　　　　　　　　"]
[]
[null,"都道府県\n指定都市\n中核市\n児童相談所設置市\n（番号）",null,null,null,null,null,null,null,null,null,null,null,null,null,null,"施設\n\n番号",null,null,null,null,null,null,null,"施設種別",null,null,null,0,null,null,null,null,null,"児童\n\n番号",null,null,null,null,null,null,null,null,null,"入所区分",null,null,null,0,null,null,null,null,null,"調査票\n\n種別",null,null,null,null,"１３",null,null,null,null,null,null,null,null,"都道府県\n指定都市\n中 核 市\n児童相談所設置市\n（名称）"]
[]
[]
[]
[null,null,null,null,null,null,null,null,null,null,null,null,null,null,null,null,null,null,null,null,null,null,null,null,null,null,null,null,null,null,null,null,null,null,null,null,null,null,null,null,null,null,null,null,null,null,null,null,null,null,null,null,null,null,null,null,null,null,null,null,null,null,null,null,null,null,null,null,"施設の名称"]
[]
[null,"児童の現在の状況",null,null,null,null,null,null,null,null,null,null,null,null,null,null,null,null,null,null,null,null,null,null,null,null,null,null,null,null,null,null,null,null,null,null,null,null,null,null,null,null,null,null,null,null,null,null,null,null,null,null,null,null,null,null,null,null,null,null,null,null,null,null,null,null,null,null,null,null,null,null,null,null,null,null,null,null,null,null,null,null,null,null,null,null,null,null,null,null,null,null,null,null,null,null,"出生年月",{"$f":"AM16&RIGHT(100+ AX16,2)","v":"00"}]
[null,null,null,null,"(1)\n性別",null,null,null,null,null,null,null,null,null,null,null,null,null,0,null,null,null,null,null,null,null,null,null,null,null,"(2)\n出生年月",null,null,null,null,null,null,"西暦",null,null,null,null,null,null,null,null,"年",null,null,null,null,null,null,"月",null,null,null,null,null,null,"(3)\n入所年月",null,null,null,null,null,null,"西暦",null,null,null,null,null,null,null,null,"年",null,null,null,null,null,null,"月",null,null,null,null,null,null,null,null,null,null,null,null,"委託年月",{"$f":"BQ16&RIGHT(100+ CB16,2)","v":"00"}]
[]
[null,null,null,null,"(4)\n入所経路"]
[]
[]
[]
[]
[null,null,null,null,null,null,null,null,null,null,null,null,null,null,null,null,null,null,null,null,null,null,null,null,null,null,null,null,null,null,null,null,null,null,null,null,null,null,null,null,null,null,null,null,null,null,null,")"]
[]
[null,null,null,null,"(5)\n就学及び\n就職状況",null,null,null,null,null,null,null,null,null,null,null,"就学前",null,null,null,null,null,null,null,null,null,null,null,null,null,null,null,null,null,null,null,null,null,null,null,null,null,null,null,null,null,null,null,null,null,null,null,null,null,null,null,"(5) 就学及び就職状況の「04 小学１年」～「14 私立高校」の補問"]
[null,null,null,null,null,null,null,null,null,null,null,null,null,null,null,null,"小学校"]
[]
[null,null,null,null,null,null,null,null,null,null,null,null,null,null,null,null,"中学校"]
[null,null,null,null,null,null,null,null,null,null,null,null,null,null,null,null,"中学卒"]
[]
[null,null,null,null,null,null,null,null,null,null,null,null,null,null,null,null,"高校卒"]
[]
[]
[]
[null,null,null,null,"(6)\n心身の状況\n\n(複数回答可)",null,null,null,null,null,null,null,null,null,null,null,null,null,false]
[]
[null,null,null,null,null,null,null,null,null,null,null,null,null,null,null,null,null,null,false,null,null,null,null,null,null,null,null,null,null,null,null,null,null,null,null,null,false,null,null,null,null,null,null,null,null,null,null,null,null,null,null,null,null,false,null,null,null,null,null,null,null,null,null,null,null,null,null,null,null,false]
[]
[null,null,null,null,null,null,null,null,null,null,null,null,null,null,null,null,null,null,false,null,null,null,null,null,null,null,null,null,null,null,null,null,null,null,null,null,false,null,null,null,null,null,null,null,null,null,null,null,null,null,null,null,null,false,null,null,null,null,null,null,null,null,null,null,null,null,null,null,null,false]
[]
[null,null,null,null,null,null,null,null,null,null,null,null,null,null,null,null,null,null,false,null,null,null,null,null,null,null,null,null,null,null,null,null,null,null,null,null,false,null,null,null,null,null,null,null,null,null,null,null,null,null,null,null,null,null,null,null,null,null,false]
[]
[null,null,null,null,null,null,null,null,null,null,null,null,null,null,null,null,null,null,false,null,null,null,null,null,null,null,null,null,null,null,null,null,null,null,null,null,null,null,null,null,null,null,null,null,null,null,false,null,null,null,null,null,null,null,false,null,null,null,null,null,null,null,null,null,null,null,null,null,null,false]
[]
[null,null,null,null,null,null,null,null,null,null,null,null,null,null,null,null,null,null,false,null,null,null,null,null,null,null,null,null,null,null,null,null,null,null,null,null,false,null,null,null,null,null,null,null,null,null,null,null,null,null,null,null,null,null,null,null,null,null,null,null,null,null,")"]
[]
[null,null,null,null,null,null,null,null,null,null,null,null,null,null,null,null,null,null,false]
[]
[null,null,null,null,null,null,null,null,null,null,null,null,null,null,null,null,null,null,false]
[]
[]
[null,null,null,null,"(7)\n罹病傾向\n(複数回答可)",null,null,null,null,null,null,null,null,null,null,null,null,null,false,null,null,null,null,null,null,null,null,null,null,null,null,null,null,null,null,false,null,null,null,null,null,null,null,null,null,null,null,null,null,null,null,null,null,false,null,null,null,null,null,null,null,null,null,null,null,null,null,false]
[]
[null,null,null,null,null,null,null,null,null,null,null,null,null,null,null,null,null,null,false,null,null,null,null,null,null,null,null,null,null,null,null,null,null,null,null,false,null,null,null,null,null,null,null,null,null,null,null,null,null,null,null,null,null,false]
[]
[]
[null,null,null,null,null,null,null,null,null,null,null,null,null,null,null,null,null,null,false,null,null,null,null,null,null,null,null,null,null,null,null,null,null,null,null,null,false,null,null,null,null,null,null,null,null,null,null,null,null,null,null,null,null,false,null,null,null,null,null,null,null,null,null,null,null,null,null,null,null,null,null,null,false]
[null,null,null,null,"(8)\n特に支援上\n留意している点\n\n(複数回答可)"]
[null,null,null,null,null,null,null,null,null,null,null,null,null,null,null,null,null,null,false,null,null,null,null,null,null,null,null,null,null,null,null,null,null,null,null,null,false,null,null,null,null,null,null,null,null,null,null,null,null,null,null,null,null,false,null,null,null,null,null,null,null,null,null,null,null,null,null,null,null,null,null,null,false]
[]
[null,null,null,null,null,null,null,null,null,null,null,null,null,null,null,null,null,null,false,null,null,null,null,null,null,null,null,null,null,null,null,null,null,null,null,null,false,null,null,null,null,null,null,null,null,null,null,null,null,null,null,null,null,false,null,null,null,null,null,null,null,null,null,null,null,null,null,null,null,null,null,null,false]
[]
[null,null,null,null,null,null,null,null,null,null,null,null,null,null,null,null,null,null,false,null,null,null,null,null,null,null,null,null,null,null,null,null,null,null,null,null,false,null,null,null,null,null,null,null,null,null,null,null,null,null,null,null,null,false,null,null,null,null,null,null,null,null,null,null,null,null,null,null,null,null,null,null,false]
[]
[null,null,null,null,null,null,null,null,null,null,null,null,null,null,null,null,null,null,false,null,null,null,null,null,null,null,null,null,null,null,null,null,null,null,null,null,false,null,null,null,null,null,null,null,null,null,null,null,null,null,null,null,null,false,null,null,null,null,null,null,null,null,null,null,null,null,null,null,null,null,null,null,false,null,null,null,null,null,null,null,null,null,null,null,")"]
[]
[null,null,null,null,null,null,null,null,null,null,null,null,null,null,null,null,null,null,false]
[]
[null,null,null,null,"(9)\n学業の状況"]
[null,null,null,null,"(10)\n通学状況"]
[]
[null,"入所時の家庭の状況",null,null,"(11)\n保護者の状況",null,null,null,null,null,null,null,null,null,null,null,null,null,null,null,null,null,null,null,null,null,null,null,null,null,null,null,null,null,null,null,"(11)の両親又は父母のどちらかありの補問"]
[]
[]
[]
[]
[]
[null,null,null,null,null,null,null,null,null,null,null,null,null,null,null,null,null,null,null,null,null,null,null,null,null,null,null,null,null,null,null,null,null,null,null,null,"(11)の両親ともいない又は不明の補問"]
[]
[]
[]
[]
[]
[]
[null,null,null,null,"(12)\n課税状況"]
[]
[null,"(13)\n入所理由\n(複数回答可)",null,null,null,null,null,null,null,null,null,null,null,null,null,null,null,null,false,null,null,null,null,null,null,null,null,null,null,null,null,null,null,null,null,false,null,null,null,null,null,null,null,null,null,null,null,null,null,null,false,null,null,null,null,null,null,null,null,null,null,null,null,null,null,null,null,false,null,null,null,null,null,null,null,null,null,null,null,null,null,null,null,null,false]
[]
[null,null,null,null,null,null,null,null,null,null,null,null,null,null,null,null,null,null,false,null,null,null,null,null,null,null,null,null,null,null,null,null,null,null,null,false,null,null,null,null,null,null,null,null,null,null,null,null,null,null,false,null,null,null,null,null,null,null,null,null,null,null,null,null,null,null,null,false,null,null,null,null,null,null,null,null,null,null,null,null,null,null,null,null,false]
[]
[null,null,null,null,null,null,null,null,null,null,null,null,null,null,null,null,null,null,false,null,null,null,null,null,null,null,null,null,null,null,null,null,null,null,null,false,null,null,null,null,null,null,null,null,null,null,null,null,null,null,false,null,null,null,null,null,null,null,null,null,null,null,null,null,null,null,null,false,null,null,null,null,null,null,null,null,null,null,null,null,null,null,null,null,false]
[]
[null,null,null,null,null,null,null,null,null,null,null,null,null,null,null,null,null,null,false,null,null,null,null,null,null,null,null,null,null,null,null,null,null,null,null,false,null,null,null,null,null,null,null,null,null,null,null,null,null,null,false,null,null,null,null,null,null,null,null,null,null,null,null,null,null,null,null,false,null,null,null,null,null,null,null,null,null,null,null,null,null,null,null,null,false]
[]
[null,null,null,null,null,null,null,null,null,null,null,null,null,null,null,null,null,null,false,null,null,null,null,null,null,null,null,null,null,null,null,null,null,null,null,false,null,null,null,null,null,null,null,null,null,null,null,null,null,null,false,null,null,null,null,null,null,null,null,null,null,null,null,null,null,null,null,false]
[]
[null,null,null,null,null,null,null,null,null,null,null,null,null,null,null,null,null,null,false,null,null,null,null,null,null,null,null,null,null,null,null,null,null,null,null,false,null,null,null,null,null,null,null,null,null,null,null,null,null,null,null,null,null,null,null,null,null,null,null,null,")"]
[]
[null,null,null,null,null,null,null,null,null,null,null,null,null,null,null,null,null,null,null,null,null,null,null,null,null,null,null,null,null,null,null,null,null,null,null,null,null,null,null,null,null,null,null,null,null,null,null,"選択したもののうち、主な理由１つ"]
[]
[]
[null,"(14)\n被虐待経験の状況",null,null,null,null,null,null,null,null,null,null,null,null,null,null,null,null,null,null,null,null,null,null,null,null,null,null,null,null,null,null,"(14)の補問１\n虐待の種類\n（複数回答可）",null,null,null,null,null,null,null,null,null,null,null,null,null,null,null,null,null,null,null,null,null,null,null,null,null,null,null,null,"(14)の補問２\n障害との関係"]
[null,null,null,null,null,null,null,null,null,null,null,null,null,null,null,null,null,null,null,null,null,null,null,null,null,null,null,null,null,null,null,null,null,null,null,null,null,null,null,null,null,null,null,null,false,null,null,null,null,null,null,null,null,null,false,null,null,null,null,null,null,null,null,null,null,null,null,null,null,"　（診断名：　　　　　　　　　　　）",null,null,null,null,null,null,null,null,null,null,null,null,null,null,null,null,null,null,null,")"]
[]
[null,null,null,null,null,null,null,null,null,null,null,null,null,null,null,null,null,null,null,null,null,null,null,null,null,null,null,null,null,null,null,null,null,null,null,null,null,null,null,null,null,null,null,null,false,null,null,null,null,null,null,null,null,null,false]
[]
[]
[null,"(15)\n現在の家族との関係"]
[null,null,null,null,null,null,null,null,null,null,null,null,null,null,null,null,null,"交流あり　（  ",null,null,null,null,null,null,null,null,null,null,null,null,null,null,null,null,null,null,null,null,null,null,null,null,null,null,null,null,null,null,null,null,null,null,null,null,null,null,null,null,")"]
[]
[]
[null,"(15)の補問"]
[null,"家族との交流の頻度"]
[]
[]
[null,"(16)\n児童の今後の見通し"]

{"sheet":"data","index":1,"n_rows":5,"n_cols":112,"rows_kept":5,"cut":false,"hidden":true,"merged":[[2,3,3,3],[2,5,3,5],[2,9,3,9],[1,0,3,0],[1,1,1,8],[2,1,3,1],[2,2,3,2],[2,4,3,4],[2,6,3,6],[2,7,3,7],[2,8,3,8],[1,39,1,45],[2,39,2,45],[1,10,1,11],[1,12,1,13],[2,10,2,11],[2,12,2,13],[1,14,1,15],[2,14,3,14],[2,15,3,15],[2,16,3,16],[1,16,1,17],[2,17,3,17],[1,18,1,38],[2,18,2,38],[1,102,1,108],[2,107,2,108],[1,109,1,110],[2,46,2,67],[1,46,1,67],[1,74,1,101],[2,74,2,101],[2,68,3,68],[2,69,3,69],[1,70,1,72],[2,70,3,70],[2,71,3,71],[2,109,3,109],[2,110,3,110],[2,111,3,111],[2,72,3,72],[2,73,3,73],[2,102,3,102],[2,103,2,106]]}
[]
["項目","KEY番号",null,null,null,null,null,null,null,"質問１","質問２",null,"質問３",null,"質問４",null,"質問５",null,"質問６",null,null,null,null,null,null,null,null,null,null,null,null,null,null,null,null,null,null,null,null,"質問７",null,null,null,null,null,null,"質問８",null,null,null,null,null,null,null,null,null,null,null,null,null,null,null,null,null,null,null,null,null,"質問９","質問10","質問11",null,null,"質問12","質問13",null,null,null,null,null,null,null,null,null,null,null,null,null,null,null,null,null,null,null,null,null,null,null,null,null,null,null,"質問14",null,null,null,null,null,null,"質問15",null,"質問16"]
[null,"都道府県・指定都市・中核市・児童相談所設置市番号","施設番号","施設種別","児童番号","入所区分","調査票種別","自治体名","施設名","性別","出生年月",null,"入所年月",null,"入所経路","具体的に","出生時の状況","補問","心身の状況",null,null,null,null,null,null,null,null,null,null,null,null,null,null,null,null,null,null,null,null,"罹病傾向",null,null,null,null,null,null,"特に支援上留意している点",null,null,null,null,null,null,null,null,null,null,null,null,null,null,null,null,null,null,null,null,null,"学業の状況","通学状況","保護者の状況","補問1","補問2","課税状況","養護問題発生理由",null,null,null,null,null,null,null,null,null,null,null,null,null,null,null,null,null,null,null,null,null,null,null,null,null,null,null,"被虐待経験の状況","補問",null,null,null,"補問２",null,"現在の家族との関係","補問","児童の今後の見通し"]
[null,null,null,null,null,null,null,null,null,null,"年","月","年","月",null,null,null,null,"01","02","03","04","05","06","07","08","09","10","11","12","13","14","15","16","17","18","19","20","その他障害",1,2,3,4,5,6,7,"01","02","03","04","05","06","07","08","09","10","11","12","13","14","15","16","17","18","19","20","21","22",null,null,null,null,null,null,"01","02","03","04","05","06","07","08","09","10","11","12","13","14","15","16","17","18","19","20","21","22","23","24","25","26","その他フリーワード","補問",null,1,2,3,4,"障害との関係","診断名"]
["回答",{"$f":"'【調査票 13】障害児入所施設'!$K$9","v":0},{"$f":"'【調査票 13】障害児入所施設'!$U$9","v":0},{"$f":"'【調査票 13】障害児入所施設'!$AC$9","v":0},{"$f":"'【調査票 13】障害児入所施設'!$AM$9","v":0},{"$f":"'【調査票 13】障害児入所施設'!$AW$9","v":0},{"$f":"'【調査票 13】障害児入所施設'!$BH$9","v":"１３"},{"$f":"'【調査票 13】障害児入所施設'!$BY$10","v":0},{"$f":"'【調査票 13】障害児入所施設'!$BY$13","v":0},{"$f":"'【調査票 13】障害児入所施設'!$S$16","v":0},{"$f":"'【調査票 13】障害児入所施設'!$AM$16","v":0},{"$f":"'【調査票 13】障害児入所施設'!$AX$16","v":0},{"$f":"'【調査票 13】障害児入所施設'!$BQ$16","v":0},{"$f":"'【調査票 13】障害児入所施設'!$CB$16","v":0},{"$f":"'【調査票 13】障害児入所施設'!$U$19","v":0},{"$f":"'【調査票 13】障害児入所施設'!$AE$23","v":0},{"$f":"'【調査票 13】障害児入所施設'!$Y$25","v":0},{"$f":"'【調査票 13】障害児入所施設'!$BR$25","v":0},{"$f":"IF('【調査票 13】障害児入所施設'!$S$35=FALSE,0,1)","v":0},{"$f":"IF('【調査票 13】障害児入所施設'!$S$37=FALSE,0,1)","v":0},{"$f":"IF('【調査票 13】障害児入所施設'!$AK$37=FALSE,0,1)","v":0},{"$f":"IF('【調査票 13】障害児入所施設'!$BB$37=FALSE,0,1)","v":0},{"$f":"IF('【調査票 13】障害児入所施設'!$BR$37=FALSE,0,1)","v":0},{"$f":"IF('【調査票 13】障害児入所施設'!$S$39=FALSE,0,1)","v":0},{"$f":"IF('【調査票 13】障害児入所施設'!$AK$39=FALSE,0,1)","v":0},{"$f":"IF('【調査票 13】障害児入所施設'!$BB$39=FALSE,0,1)","v":0},{"$f":"IF('【調査票 13】障害児入所施設'!$BR$39=FALSE,0,1)","v":0},{"$f":"IF('【調査票 13】障害児入所施設'!$S$41=FALSE,0,1)","v":0},{"$f":"IF('【調査票 13】障害児入所施設'!$AK$41=FALSE,0,1)","v":0},{"$f":"IF('【調査票 13】障害児入所施設'!$BG$41=FALSE,0,1)","v":0},{"$f":"IF('【調査票 13】障害児入所施設'!$S$43=FALSE,0,1)","v":0},{"$f":"IF('【調査票 13】障害児入所施設'!$AU$43=FALSE,0,1)","v":0},{"$f":"IF('【調査票 13】障害児入所施設'!$BC$43=FALSE,0,1)","v":0},{"$f":"IF('【調査票 13】障害児入所施設'!$BR$43=FALSE,0,1)","v":0},{"$f":"IF('【調査票 13】障害児入所施設'!$S$45=FALSE,0,1)","v":0},{"$f":"IF('【調査票 13】障害児入所施設'!$AK$45=FALSE,0,1)","v":0},{"$f":"IF('【調査票 13】障害児入所施設'!$S$47=FALSE,0,1)","v":0},{"$f":"IF('【調査票 13】障害児入所施設'!$S$49=FALSE,0,1)","v":0},{"$f":"'【調査票 13】障害児入所施設'!$AU$45","v":0},{"$f":"IF('【調査票 13】障害児入所施設'!$S$52=FALSE,0,1)","v":0},{"$f":"IF('【調査票 13】障害児入所施設'!$AJ$52=FALSE,0,1)","v":0},{"$f":"IF('【調査票 13】障害児入所施設'!$BB$52=FALSE,0,1)","v":0},{"$f":"IF('【調査票 13】障害児入所施設'!$BP$52=FALSE,0,1)","v":0},{"$f":"IF('【調査票 13】障害児入所施設'!$S$54=FALSE,0,1)","v":0},{"$f":"IF('【調査票 13】障害児入所施設'!$AJ$54=FALSE,0,1)","v":0},{"$f":"IF('【調査票 13】障害児入所施設'!$BB$54=FALSE,0,1)","v":0},{"$f":"IF('【調査票 13】障害児入所施設'!$S$57=FALSE,0,1)","v":0},{"$f":"IF('【調査票 13】障害児入所施設'!$AK$57=FALSE,0,1)","v":0},{"$f":"IF('【調査票 13】障害児入所施設'!$BB$57=FALSE,0,1)","v":0},{"$f":"IF('【調査票 13】障害児入所施設'!$BU$57=FALSE,0,1)","v":0},{"$f":"IF('【調査票 13】障害児入所施設'!$S$59=FALSE,0,1)","v":0},{"$f":"IF('【調査票 13】障害児入所施設'!$AK$59=FALSE,0,1)","v":0},{"$f":"IF('【調査票 13】障害児入所施設'!$BB$59=FALSE,0,1)","v":0},{"$f":"IF('【調査票 13】障害児入所施設'!$BU$59=FALSE,0,1)","v":0},{"$f":"IF('【調査票 13】障害児入所施設'!$S$61=FALSE,0,1)","v":0},{"$f":"IF('【調査票 13】障害児入所施設'!$AK$61=FALSE,0,1)","v":0},{"$f":"IF('【調査票 13】障害児入所施設'!$BB$61=FALSE,0,1)","v":0},{"$f":"IF('【調査票 13】障害児入所施設'!$BU$61=FALSE,0,1)","v":0},{"$f":"IF('【調査票 13】障害児入所施設'!$S$63=FALSE,0,1)","v":0},{"$f":"IF('【調査票 13】障害児入所施設'!$AK$63=FALSE,0,1)","v":0},{"$f":"IF('【調査票 13】障害児入所施設'!$BB$63=FALSE,0,1)","v":0},{"$f":"IF('【調査票 13】障害児入所施設'!$BU$63=FALSE,0,1)","v":0},{"$f":"IF('【調査票 13】障害児入所施設'!$S$65=FALSE,0,1)","v":0},{"$f":"IF('【調査票 13】障害児入所施設'!$AK$65=FALSE,0,1)","v":0},{"$f":"IF('【調査票 13】障害児入所施設'!$BB$65=FALSE,0,1)","v":0},{"$f":"IF('【調査票 13】障害児入所施設'!$BU$65=FALSE,0,1)","v":0},{"$f":"IF('【調査票 13】障害児入所施設'!$S$67=FALSE,0,1)","v":0},{"$f":"'【調査票 13】障害児入所施設'!$CA$65","v":0},{"$f":"'【調査票 13】障害児入所施設'!$U$69","v":0},{"$f":"'【調査票 13】障害児入所施設'!$U$70","v":0},{"$f":"'【調査票 13】障害児入所施設'!$S$73","v":0},{"$f":"'【調査票 13】障害児入所施設'!$AX$72","v":0},{"$f":"'【調査票 13】障害児入所施設'!$AX$79","v":0},{"$f":"'【調査票 13】障害児入所施設'!$S$85","v":0},{"$f":"IF('【調査票 13】障害児入所施設'!$S$87=FALSE,0,1)","v":0},{"$f":"IF('【調査票 13】障害児入所施設'!$AJ$87=FALSE,0,1)","v":0},{"$f":"IF('【調査票 13】障害児入所施設'!$AY$87=FALSE,0,1)","v":0},{"$f":"IF('【調査票 13】障害児入所施設'!$BP$87=FALSE,0,1)","v":0},{"$f":"IF('【調査票 13】障害児入所施設'!$CG$87=FALSE,0,1)","v":0},{"$f":"IF('【調査票 13】障害児入所施設'!$S$89=FALSE,0,1)","v":0},{"$f":"IF('【調査票 13】障害児入所施設'!$AJ$89=FALSE,0,1)","v":0},{"$f":"IF('【調査票 13】障害児入所施設'!$AY$89=FALSE,0,1)","v":0},{"$f":"IF('【調査票 13】障害児入所施設'!$BP$89=FALSE,0,1)","v":0},{"$f":"IF('【調査票 13】障害児入所施設'!$CG$89=FALSE,0,1)","v":0},{"$f":"IF('【調査票 13】障害児入所施設'!$S$91=FALSE,0,1)","v":0},{"$f":"IF('【調査票 13】障害児入所施設'!$AJ$91=FALSE,0,1)","v":0},{"$f":"IF('【調査票 13】障害児入所施設'!$AY$91=FALSE,0,1)","v":0},{"$f":"IF('【調査票 13】障害児入所施設'!$BP$91=FALSE,0,1)","v":0},{"$f":"IF('【調査票 13】障害児入所施設'!$CG$91=FALSE,0,1)","v":0},{"$f":"IF('【調査票 13】障害児入所施設'!$S$93=FALSE,0,1)","v":0},{"$f":"IF('【調査票 13】障害児入所施設'!$AJ$93=FALSE,0,1)","v":0},{"$f":"IF('【調査票 13】障害児入所施設'!$AY$93=FALSE,0,1)","v":0},{"$f":"IF('【調査票 13】障害児入所施設'!$BP$93=FALSE,0,1)","v":0},{"$f":"IF('【調査票 13】障害児入所施設'!$CG$93=FALSE,0,1)","v":0},{"$f":"IF('【調査票 13】障害児入所施設'!$S$95=FALSE,0,1)","v":0},{"$f":"IF('【調査票 13】障害児入所施設'!$AJ$95=FALSE,0,1)","v":0},{"$f":"IF('【調査票 13】障害児入所施設'!$AY$95=FALSE,0,1)","v":0},{"$f":"IF('【調査票 13】障害児入所施設'!$BP$95=FALSE,0,1)","v":0},{"$f":"IF('【調査票 13】障害児入所施設'!$S$97=FALSE,0,1)","v":0},{"$f":"IF('【調査票 13】障害児入所施設'!$AJ$97=FALSE,0,1)","v":0},{"$f":"'【調査票 13】障害児入所施設'!$AP$97","v":0},{"$f":"'【調査票 13】障害児入所施設'!$BQ$99","v":0},{"$f":"'【調査票 13】障害児入所施設'!$S$102","v":0},{"$f":"IF('【調査票 13】障害児入所施設'!$AS$103=FALSE,0,1)","v":0},{"$f":"IF('【調査票 13】障害児入所施設'!$BC$103=FALSE,0,1)","v":0},{"$f":"IF('【調査票 13】障害児入所施設'!$AS$105=FALSE,0,1)","v":0},{"$f":"IF('【調査票 13】障害児入所施設'!$BC$105=FALSE,0,1)","v":0},{"$f":"'【調査票 13】障害児入所施設'!$BS$102","v":0},{"$f":"'【調査票 13】障害児入所施設'!$BZ$103","v":0},{"$f":"'【調査票 13】障害児入所施設'!$AA$109","v":0},{"$f":"'【調査票 13】障害児入所施設'!$S$112","v":0},{"$f":"'【調査票 13】障害児入所施設'!$S$116","v":0}]